[Event "FIDE World Rapid-ch Open 2018"]
[White "Artemiev, Vladislav"]
[Black "Vitiugov, Nikita"]
[Site "St. Petersburg"]
[Round "2.3"]
[Annotator "ChessBase"]
[Result "1-0"]
[Date "2018.12.26"]
[WhiteElo "2709"]
[BlackElo "2719"]
[PlyCount "115"]
[TimeControl "900+10"]

1. c4 {[%emt 0:0:2]} c6 {[%emt 0:0:10]} 2. e4 {[%emt 0:0:4]} d5 {[%emt 0:0:0]} 3. exd5 {[%emt 0:0:3]} cxd5 {[%emt 0:0:2]} 4. d4 {[%emt 0:0:1]} Nf6 {[%emt 0:0:4]} 5. Nc3 {[%emt 0:0:2]} g6 {[%emt 0:0:24]} 6. Qb3 {[%emt 0:0:2]
} Bg7 {[%emt 0:0:8]} 7. cxd5 {[%emt 0:0:3]} 0-0 {[%emt 0:0:0]} 8. Be2 {[%emt 0:0:5]} Nbd7 {[%emt 0:2:5]} 9. Bf3 {[%emt 0:0:13]} Nb6 {[%emt 0:0:8]} 10. Nge2 {[%emt 0:0:2]} a5 {[%emt 0:0:34]} 11. 0-0 {[%emt 0:2:17]
} a4 {[%emt 0:0:16]} 12. Qb5 {[%emt 0:0:1]} Bd7 {[%emt 0:0:0]} 13. Qb4 {[%emt 0:0:12]} Bg4 {[%emt 0:1:40]} 14. Bxg4 {[%emt 0:0:4]} Nxg4 {[%emt 0:0:3]} 15. Qb5 {[%emt 0:1:5]} Nf6 {[%emt 0:0:16]} 16. Nf4 {[%emt 0:0:10]
} Qd6 {[%emt 0:0:31]} 17. Re1 {[%emt 0:0:58]} Rfc8 {[%emt 0:0:0]} 18. a3 {[%emt 0:0:45]} Ra6 {[%emt 0:3:6]} 19. h3 {[%emt 0:1:19]} h6 {[%emt 0:0:27]
} 20. Be3 {[%emt 0:2:46]} g5 {[%emt 0:0:24]} 21. Nd3 {[%emt 0:0:0]} Nbxd5 {[%emt 0:0:26]} 22. Nc5 {[%emt 0:1:9]} Rb6 {[%emt 0:0:27]} 23. Qe2 {[%emt 0:0:1]} Nxc3 {[%emt 0:0:47]} 24. bxc3 {[%emt 0:0:2]} Nd5 {[%emt 0:0:6]
} 25. Nxa4 {[%emt 0:1:52]} Nxc3 {[%emt 0:0:52]} 26. Qg4 {[%emt 0:0:46]
} Rbc6 {[%emt 0:0:11]} 27. Nxc3 {[%emt 0:0:6]} Rxc3 {[%emt 0:0:0]} 28. h4 {[%emt 0:0:41]} gxh4 {[%emt 0:0:25]} 29. Rab1 {[%emt 0:0:41]} b6 {[%emt 0:0:35]} 30. Rb5 {[%emt 0:0:46]} Qg6 {[%emt 0:0:33]} 31. Qxh4 {[%emt 0:0:14]
} R8c7 {[%emt 0:1:43]} 32. d5 {[%emt 0:0:57]} Bf6 {[%emt 0:0:0]} 33. Qh3 {[%emt 0:1:47]} Bd4 {[%emt 0:0:19]} 34. d6 {[%emt 0:0:24]} Qxd6 {[%emt 0:0:4]} 35. Qg4+ {[%emt 0:0:10]} Bg7 {[%emt 0:0:6]} 36. Rxb6 {[%emt 0:0:12]
} R7c6 {[%emt 0:0:17]} 37. Bf4 {[%emt 0:0:29]} Qg6 {[%emt 0:0:0]} 38. Qxg6 {[%emt 0:0:6]} fxg6 {[%emt 0:0:5]} 39. Rxc6 {[%emt 0:0:15]} Rxc6 {[%emt 0:0:1]} 40. Rxe7 {[%emt 0:0:1]} Ra6 {[%emt 0:0:12]} 41. Bc1 {[%emt 0:0:2]
} Rc6 {[%emt 0:0:16]} 42. Bd2 {[%emt 0:0:1]} Rc2 {[%emt 0:0:0]} 43. Be3 {[%emt 0:0:3]} Ra2 {[%emt 0:0:13]} 44. Ra7 {[%emt 0:0:2]} Be5 {[%emt 0:0:12]} 45. g3 {[%emt 0:0:9]} h5 {[%emt 0:0:7]} 46. a4 {[%emt 0:0:0]} Bc3 {[%emt 0:0:3]} 47. Kg2 {[%emt 0:0:31]} Bb4 {[%emt 0:0:20]} 48. Kf3 {[%emt 0:0:1]} Be1 {[%emt 0:0:8]} 49. Bd4 {[%emt 0:0:4]} Bd2 {[%emt 0:0:5]
} 50. Bb6 {[%emt 0:0:21]} g5 {[%emt 0:0:3]} 51. a5 {[%emt 0:0:0]} h4 {[%emt 0:0:24]} 52. gxh4 {[%emt 0:0:28]} gxh4 {[%emt 0:0:1]} 53. Kg4 {[%emt 0:0:13]} Be1 {[%emt 0:0:6]} 54. a6 {[%emt 0:0:4]} Ra4+ {[%emt 0:0:16]
} 55. Kh3 {[%emt 0:0:6]} Bc3 {[%emt 0:0:17]} 56. Ra8+ {[%emt 0:0:15]
} Kf7 {[%emt 0:0:2]} 57. a7 {[%emt 0:0:1]} Ra3 {[%emt 0:0:0]} 58. Rf8+ {[%emt 0:0:30]} 1-0

[Event "FIDE World Rapid-ch Open 2018"]
[White "Frolyanov, Dmitry"]
[Black "Kamsky, Gata"]
[Site "St. Petersburg"]
[Round "2.9"]
[Annotator "ChessBase"]
[Result "0-1"]
[Date "2018.12.26"]
[WhiteElo "2517"]
[BlackElo "2666"]
[PlyCount "76"]
[TimeControl "900+10"]

1. e4 {[%emt 0:0:0]} c5 {[%emt 0:0:1]} 2. Nf3 {[%emt 0:0:0]} e6 {[%emt 0:0:0]} 3. d4 {[%emt 0:0:0]} cxd4 {[%emt 0:0:2]} 4. Nxd4 {[%emt 0:0:0]} a6 {[%emt 0:0:2]} 5. Bd3 {[%emt 0:0:1]} g6 {[%emt 0:0:35]} 6. 0-0 {[%emt 0:0:45]
} Bg7 {[%emt 0:0:4]} 7. Nb3 {[%emt 0:0:25]} Ne7 {[%emt 0:0:0]} 8. c4 {[%emt 0:0:13]} 0-0 {[%emt 0:0:11]} 9. Nc3 {[%emt 0:0:3]} Nbc6 {[%emt 0:0:6]
} 10. Bg5 {[%emt 0:0:39]} h6 {[%emt 0:1:54]} 11. Bf4 {[%emt 0:0:0]} Ne5 {[%emt 0:1:51]} 12. Be2 {[%emt 0:0:9]} g5 {[%emt 0:0:4]} 13. Be3 {[%emt 0:1:7]} b6 {[%emt 0:2:36]} 14. Qd2 {[%emt 0:2:41]} N7g6 {[%emt 0:1:16]
} 15. Rad1 {[%emt 0:2:25]} Bb7 {[%emt 0:0:36]} 16. Na4 {[%emt 0:2:4]
} b5 {[%emt 0:1:24]} 17. cxb5 {[%emt 0:0:11]} axb5 {[%emt 0:0:0]} 18. Nac5 {[%emt 0:1:2]} Bc6 {[%emt 0:0:11]} 19. Nd4 {[%emt 0:0:3]} Qa5 {[%emt 0:2:0]} 20. Nxc6 {[%emt 0:0:39]} dxc6 {[%emt 0:0:3]} 21. a3 {[%emt 0:1:43]
} Nc4 {[%emt 0:0:41]} 22. Bxc4 {[%emt 0:0:37]} bxc4 {[%emt 0:0:0]} 23. Qc2 {[%emt 0:0:30]} c3 {[%emt 0:0:4]} 24. bxc3 {[%emt 0:0:21]} Qxa3 {[%emt 0:0:24]} 25. Nd3 {[%emt 0:1:28]} Qa4 {[%emt 0:0:9]} 26. Qxa4 {[%emt 0:0:40]
} Rxa4 {[%emt 0:0:2]} 27. Bc5 {[%emt 0:0:22]} Rfa8 {[%emt 0:0:0]} 28. Bb4 {[%emt 0:0:2]} Ra2 {[%emt 0:0:9]} 29. Nc5 {[%emt 0:1:9]} Rc2 {[%emt 0:0:7]} 30. Rd6 {[%emt 0:0:11]} Bxc3 {[%emt 0:0:36]} 31. Bxc3 {[%emt 0:0:3]
} Rxc3 {[%emt 0:0:2]} 32. Rxc6 {[%emt 0:0:19]} Ne5 {[%emt 0:0:0]} 33. Ra6 {[%emt 0:0:17]} Rb8 {[%emt 0:1:0]} 34. Na4 {[%emt 0:0:14]} Rc4 {[%emt 0:0:8]} 35. f3 {[%emt 0:0:7]} Rbb4 {[%emt 0:0:10]} 36. Ra1 {[%emt 0:0:4]
} Kg7 {[%emt 0:0:22]} 37. h3 {[%emt 0:0:13]} Nd3 {[%emt 0:0:0]} 38. Rd6 {[%emt 0:0:11]} Nf4 {[%emt 0:0:3]} 0-1

[Event "FIDE World Rapid-ch Open 2018"]
[White "Svidler, Peter"]
[Black "Lintchevski, Daniil"]
[Site "St. Petersburg"]
[Round "2.10"]
[Annotator "ChessBase"]
[Result "1-0"]
[Date "2018.12.26"]
[WhiteElo "2737"]
[BlackElo "2516"]
[PlyCount "87"]
[TimeControl "900+10"]

1. e4 {[%emt 0:0:0]} c5 {[%emt 0:0:0]} 2. Nf3 {[%emt 0:0:0]} e6 {[%emt 0:0:0]} 3. d4 {[%emt 0:0:0]} cxd4 {[%emt 0:0:0]} 4. Nxd4 {[%emt 0:0:0]} Nf6 {[%emt 0:0:4]} 5. Nc3 {[%emt 0:0:1]} Nc6 {[%emt 0:0:2]} 6. a3 {[%emt 0:1:4]
} d6 {[%emt 0:0:29]} 7. Be3 {[%emt 0:0:46]} Be7 {[%emt 0:0:13]
} 8. Qe2 {[%emt 0:0:20]} a6 {[%emt 0:1:31]} 9. 0-0-0 {[%emt 0:0:11]} Qc7 {[%emt 0:0:3]
} 10. g4 {[%emt 0:0:37]} Nxd4 {[%emt 0:1:17]} 11. Rxd4 {[%emt 0:0:12]
} b5 {[%emt 0:0:22]} 12. g5 {[%emt 0:0:7]} Nd7 {[%emt 0:0:8]
} 13. f4 {[%emt 0:0:24]} Bb7 {[%emt 0:0:25]} 14. Rg1 {[%emt 0:0:24]} Nb6 {[%emt 0:1:18]
} 15. Qf2 {[%emt 0:2:13]} d5 {[%emt 0:2:41]} 16. Rd1 {[%emt 0:0:0]} Nc4 {[%emt 0:1:53]} 17. Bxc4 {[%emt 0:0:9]} Qxc4 {[%emt 0:0:7]} 18. Bd4 {[%emt 0:0:35]} 0-0-0 {[%emt 0:0:56]} 19. Bxg7 {[%emt 0:1:1]} Rhg8 {[%emt 0:0:17]} 20. Be5 {[%emt 0:0:9]} Bc5 {[%emt 0:0:26]} 21. Bd4 {[%emt 0:0:2]
} Be7 {[%emt 0:0:1]} 22. e5 {[%emt 0:1:28]} Kb8 {[%emt 0:0:0]} 23. Kb1 {[%emt 0:0:9]} Rc8 {[%emt 0:0:5]} 24. Rg3 {[%emt 0:0:10]} Qc6 {[%emt 0:1:10]} 25. Qe2 {[%emt 0:0:34]} Qe8 {[%emt 0:0:53]} 26. h4 {[%emt 0:0:0]} h6 {[%emt 0:0:23]} 27. Rdg1 {[%emt 0:0:33]} Rh8 {[%emt 0:0:20]} 28. g6 {[%emt 0:0:32]} Bxh4 {[%emt 0:0:45]} 29. g7 {[%emt 0:0:24]} Rg8 {[%emt 0:0:0]} 30. Rh3 {[%emt 0:0:2]} Be7 {[%emt 0:0:2]} 31. Rxh6 {[%emt 0:0:3]} Rc4 {[%emt 0:0:17]} 32. Qf2 {[%emt 0:0:50]} Qc8 {[%emt 0:0:10]} 33. Rg3 {[%emt 0:1:0]
} b4 {[%emt 0:1:26]} 34. axb4 {[%emt 0:0:2]} Rxb4 {[%emt 0:0:0]} 35. f5 {[%emt 0:0:47]} exf5 {[%emt 0:0:22]} 36. e6 {[%emt 0:0:3]} f6 {[%emt 0:0:17]
} 37. Bxf6 {[%emt 0:0:49]} Bc5 {[%emt 0:1:15]} 38. Qxf5 {[%emt 0:0:24]
} d4 {[%emt 0:0:3]} 39. Rh8 {[%emt 0:0:32]} dxc3 {[%emt 0:0:0]} 40. Rxc3 {[%emt 0:0:10]} Re4 {[%emt 0:0:22]} 41. Rxc5 {[%emt 0:0:25]} Qe8 {[%emt 0:0:2]} 42. Rxg8 {[%emt 0:0:16]} Qxg8 {[%emt 0:0:2]} 43. Be5+ {[%emt 0:0:2]
} Ka7 {[%emt 0:0:3]} 44. Qf2 {[%emt 0:0:7]} 1-0

[Event "FIDE World Rapid-ch Open 2018"]
[White "Korobov, Anton"]
[Black "Postny, Evgeny"]
[Site "St. Petersburg"]
[Round "2.11"]
[Annotator "ChessBase"]
[Result "1/2-1/2"]
[Date "2018.12.26"]
[WhiteElo "2698"]
[BlackElo "2615"]
[PlyCount "65"]
[TimeControl "900+10"]

1. d4 d5 2. c4 c6 3. Nf3 Nf6 4. Nc3 a6 5. c5 Bf5 6. Bf4 Nbd7 7. e3 Nh5 8. Be5 f6 9. Bg3 e5 10. Be2 Nxg3 11. hxg3 Be6 12. b4 e4 13. Nd2 g6 14. a4 Bg7 15. b5 axb5 16. axb5 0-0 17. 0-0 f5 18. Qb3 h5 19. Rxa8 Qxa8 20. Qb2 Qd8 21. bxc6 bxc6 22. Qb7 Qa8 23. Rb1 Qxb7 24. Rxb7 Rc8 25. Nb3 Bf6 26. Kf1 Bd8 27. Ke1 Rb8 28. Rxb8 Nxb8 29. Na2 Kf8 30. Kd2 Bc8 31. Nb4 Ke7 32. Kc3 Kd7 33. Nd2 1/2-1/2

[Event "FIDE World Rapid-ch Open 2018"]
[White "Roiz, Michael"]
[Black "Guseinov, Gadir"]
[Site "St. Petersburg"]
[Round "2.14"]
[Annotator "ChessBase"]
[Result "1-0"]
[Date "2018.12.26"]
[WhiteElo "2605"]
[BlackElo "2664"]
[PlyCount "115"]
[TimeControl "900+10"]

1. Nf3 {[%emt 0:0:0]} g6 {[%emt 0:0:0]} 2. d4 {[%emt 0:0:6]} Bg7 {[%emt 0:0:2]
} 3. c4 {[%emt 0:0:4]} d6 {[%emt 0:0:9]} 4. Nc3 {[%emt 0:0:0]} Nf6 {[%emt 0:0:6]} 5. g3 {[%emt 0:0:37]} 0-0 {[%emt 0:0:10]} 6. Bg2 {[%emt 0:0:2]
} Nc6 {[%emt 0:0:4]} 7. 0-0 {[%emt 0:0:4]} Bf5 {[%emt 0:0:0]} 8. Ne1 {[%emt 0:0:35]} Re8 {[%emt 0:0:3]} 9. e4 {[%emt 0:0:27]} Bd7 {[%emt 0:0:3]
} 10. Nc2 {[%emt 0:2:4]} e5 {[%emt 0:0:3]} 11. dxe5 {[%emt 0:0:0]} dxe5 {[%emt 0:0:52]} 12. Nd5 {[%emt 0:0:16]} Nd4 {[%emt 0:1:6]} 13. Nxd4 {[%emt 0:0:43]} exd4 {[%emt 0:0:39]} 14. Bg5 {[%emt 0:1:29]} c6 {[%emt 0:0:8]
} 15. Nxf6+ {[%emt 0:0:4]} Bxf6 {[%emt 0:0:2]} 16. Bxf6 {[%emt 0:0:2]
} Qxf6 {[%emt 0:0:1]} 17. f4 {[%emt 0:0:14]} Qd6 {[%emt 0:0:0]} 18. Qd3 {[%emt 0:1:10]} f6 {[%emt 0:0:14]} 19. b4 {[%emt 0:1:14]} b6 {[%emt 0:1:44]
} 20. Rad1 {[%emt 0:1:53]} Bg4 {[%emt 0:0:59]} 21. Qxd4 {[%emt 0:1:2]
} Qxb4 {[%emt 0:0:2]} 22. Qd6 {[%emt 0:0:15]} Qxd6 {[%emt 0:0:0]} 23. Rxd6 {[%emt 0:0:1]} Be6 {[%emt 0:0:4]} 24. e5 {[%emt 0:1:41]} Rad8 {[%emt 0:1:53]} 25. Bxc6 {[%emt 0:0:21]} Rxd6 {[%emt 0:0:1]} 26. exd6 {[%emt 0:0:2]} Rd8 {[%emt 0:0:1]} 27. Rd1 {[%emt 0:0:39]} Bxc4 {[%emt 0:0:0]} 28. a3 {[%emt 0:0:15]} Kf7 {[%emt 0:0:11]} 29. Rd4 {[%emt 0:0:24]} Be6 {[%emt 0:0:39]} 30. Bb5 {[%emt 0:0:24]} Bd7 {[%emt 0:0:22]} 31. Bc4+ {[%emt 0:0:5]
} Kf8 {[%emt 0:0:1]} 32. Kf2 {[%emt 0:0:7]} b5 {[%emt 0:0:0]} 33. Be2 {[%emt 0:0:21]} a5 {[%emt 0:0:7]} 34. Rd5 {[%emt 0:0:28]} Rb8 {[%emt 0:0:2]} 35. Ke3 {[%emt 0:0:6]} Kf7 {[%emt 0:0:50]} 36. f5 {[%emt 0:0:0]} gxf5 {[%emt 0:0:9]} 37. Bd3 {[%emt 0:0:1]} a4 {[%emt 0:0:44]} 38. Bxf5 {[%emt 0:0:27]} Bxf5 {[%emt 0:0:9]} 39. Rxf5 {[%emt 0:0:1]} Ke6 {[%emt 0:0:0]
} 40. Rh5 {[%emt 0:0:1]} Kxd6 {[%emt 0:0:19]} 41. Kd3 {[%emt 0:0:26]
} Rb7 {[%emt 0:1:9]} 42. Kc3 {[%emt 0:0:4]} Ke6 {[%emt 0:0:0]} 43. Rc5 {[%emt 0:0:2]} f5 {[%emt 0:0:38]} 44. Kb4 {[%emt 0:0:3]} Rd7 {[%emt 0:0:34]} 45. Kxb5 {[%emt 0:0:14]} Rd2 {[%emt 0:0:33]} 46. Rc6+ {[%emt 0:0:11]
} Kf7 {[%emt 0:0:5]} 47. Rh6 {[%emt 0:0:5]} Kg7 {[%emt 0:0:0]} 48. Rh4 {[%emt 0:0:6]} Kg6 {[%emt 0:0:3]} 49. Kxa4 {[%emt 0:0:6]} h5 {[%emt 0:0:1]} 50. Kb3 {[%emt 0:0:19]} Kg5 {[%emt 0:0:10]} 51. a4 {[%emt 0:0:0]} f4 {[%emt 0:0:5]} 52. Rxf4 {[%emt 0:0:5]} Rxh2 {[%emt 0:0:1]} 53. a5 {[%emt 0:0:33]} Rg2 {[%emt 0:0:24]} 54. Rf3 {[%emt 0:0:1]} Re2 {[%emt 0:0:0]} 55. Rc3 {[%emt 0:0:21]} Re4 {[%emt 0:0:10]} 56. Rc5+ {[%emt 0:0:11]} Kg6 {[%emt 0:0:8]} 57. a6 {[%emt 0:0:16]} Re3+ {[%emt 0:0:3]} 58. Kb4 {[%emt 0:0:9]
} 1-0

[Event "FIDE World Rapid-ch Open 2018"]
[White "Smirin, Ilia"]
[Black "Andreikin, Dmitry"]
[Site "St. Petersburg"]
[Round "2.15"]
[Annotator "ChessBase"]
[Result "0-1"]
[Date "2018.12.26"]
[WhiteElo "2609"]
[BlackElo "2719"]
[PlyCount "108"]
[TimeControl "900+10"]

1. e4 {[%emt 0:0:0]} e5 {[%emt 0:0:2]} 2. Nf3 {[%emt 0:0:0]} Nc6 {[%emt 0:0:2]
} 3. Bb5 {[%emt 0:0:1]} Nf6 {[%emt 0:0:8]} 4. d3 {[%emt 0:0:0]} Bc5 {[%emt 0:0:10]} 5. h3 {[%emt 0:0:12]} Nd4 {[%emt 0:1:4]} 6. Nxd4 {[%emt 0:0:8]
} Bxd4 {[%emt 0:0:3]} 7. c3 {[%emt 0:0:13]} Bb6 {[%emt 0:0:0]} 8. Bg5 {[%emt 0:0:18]} c6 {[%emt 0:1:28]} 9. Ba4 {[%emt 0:0:11]} d5 {[%emt 0:0:3]
} 10. Qf3 {[%emt 0:1:40]} Be6 {[%emt 0:0:36]} 11. Nd2 {[%emt 0:0:0]} h6 {[%emt 0:3:0]} 12. Bh4 {[%emt 0:0:4]} g5 {[%emt 0:1:55]} 13. Bg3 {[%emt 0:0:5]} dxe4 {[%emt 0:0:3]} 14. dxe4 {[%emt 0:0:47]} g4 {[%emt 0:0:43]
} 15. Qe2 {[%emt 0:0:20]} Nh5 {[%emt 0:0:7]} 16. Bxe5 {[%emt 0:0:43]
} Qg5 {[%emt 0:0:2]} 17. Bxh8 {[%emt 0:1:1]} Nf4 {[%emt 0:0:0]} 18. Qf1 {[%emt 0:0:52]} gxh3 {[%emt 0:0:15]} 19. gxh3 {[%emt 0:3:4]} Ng2+ {[%emt 0:0:2]} 20. Kd1 {[%emt 0:0:25]} 0-0-0 {[%emt 0:0:7]} 21. Bd4 {[%emt 0:3:4]
} Bxd4 {[%emt 0:0:17]} 22. cxd4 {[%emt 0:0:2]} Rxd4 {[%emt 0:0:0]} 23. f4 {[%emt 0:0:57]} Ne3+ {[%emt 0:4:23]} 24. Ke2 {[%emt 0:0:5]} Qa5 {[%emt 0:0:4]} 25. Qc1 {[%emt 0:0:36]} Nc4 {[%emt 0:0:42]} 26. Nf3 {[%emt 0:0:33]
} Rxe4+ {[%emt 0:0:10]} 27. Kf2 {[%emt 0:0:1]} Qb6+ {[%emt 0:0:0]} 28. Kg3 {[%emt 0:0:6]} Ne3 {[%emt 0:0:2]} 29. Bd1 {[%emt 0:1:30]} Nf5+ {[%emt 0:0:11]} 30. Kg2 {[%emt 0:0:1]} Ne3+ {[%emt 0:0:1]} 31. Kg3 {[%emt 0:0:7]
} Nf5+ {[%emt 0:0:36]} 32. Kg2 {[%emt 0:0:1]} Bd5 {[%emt 0:0:0]} 33. Qc3 {[%emt 0:0:30]} Ne3+ {[%emt 0:0:16]} 34. Kg3 {[%emt 0:0:2]} Nf5+ {[%emt 0:0:10]} 35. Kg2 {[%emt 0:0:2]} Re8 {[%emt 0:0:27]} 36. Rh2 {[%emt 0:2:27]
} Rg8+ {[%emt 0:1:27]} 37. Kf1 {[%emt 0:0:2]} Ng3+ {[%emt 0:0:0]} 38. Ke1 {[%emt 0:0:5]} Bxf3 {[%emt 0:0:13]} 39. Qxf3 {[%emt 0:0:11]
} Qg1+ {[%emt 0:0:7]} 40. Kd2 {[%emt 0:0:1]} Qxh2+ {[%emt 0:0:9]} 41. Kc3 {[%emt 0:0:1]} Rd8 {[%emt 0:0:5]} 42. Qe3 {[%emt 0:0:28]} Qxh3 {[%emt 0:0:0]} 43. Kb3 {[%emt 0:0:9]} Qf5 {[%emt 0:0:8]} 44. Bc2 {[%emt 0:0:10]} Qb5+ {[%emt 0:0:4]} 45. Ka3 {[%emt 0:0:7]} Qa5+ {[%emt 0:0:2]} 46. Kb3 {[%emt 0:0:1]
} Qb5+ {[%emt 0:0:18]} 47. Ka3 {[%emt 0:0:2]} Ne2 {[%emt 0:0:0]} 48. Qe5 {[%emt 0:0:26]} Nd4 {[%emt 0:0:10]} 49. Rc1 {[%emt 0:0:25]} Qa6+ {[%emt 0:0:14]} 50. Kb4 {[%emt 0:0:2]} Qxa2 {[%emt 0:0:18]} 51. Bf5+ {[%emt 0:0:11]
} Nxf5 {[%emt 0:0:2]} 52. Qxf5+ {[%emt 0:0:4]} Rd7 {[%emt 0:0:0]} 53. Qe5 {[%emt 0:0:20]} Qe6 {[%emt 0:0:19]} 54. Qc5 {[%emt 0:0:9]} Qd6 {[%emt 0:0:11]} 0-1

[Event "FIDE World Rapid-ch Open 2018"]
[White "Dubov, Daniil"]
[Black "Jumabayev, Rinat"]
[Site "St. Petersburg"]
[Round "2.17"]
[Annotator "ChessBase"]
[Result "1-0"]
[Date "2018.12.26"]
[WhiteElo "2703"]
[BlackElo "2602"]
[PlyCount "101"]
[TimeControl "900+10"]

1. c4 {[%emt 0:0:0]} e5 {[%emt 0:0:0]} 2. Nc3 {[%emt 0:0:0]} Nf6 {[%emt 0:0:0]
} 3. g3 {[%emt 0:0:0]} Bc5 {[%emt 0:0:6]} 4. Nf3 {[%emt 0:0:0]} e4 {[%emt 0:1:29]} 5. Ng5 {[%emt 0:0:5]} Bxf2+ {[%emt 0:3:36]} 6. Kxf2 {[%emt 0:0:2]} Ng4+ {[%emt 0:0:2]} 7. Kg1 {[%emt 0:0:6]} Qxg5 {[%emt 0:0:0]} 8. Nxe4 {[%emt 0:0:5]} Qg6 {[%emt 0:1:4]} 9. Bg2 {[%emt 0:0:45]} 0-0 {[%emt 0:0:26]} 10. d4 {[%emt 0:1:12]} d6 {[%emt 0:2:43]} 11. Bf4 {[%emt 0:1:18]
} Nc6 {[%emt 0:0:48]} 12. Nc3 {[%emt 0:0:52]} Bd7 {[%emt 0:0:0]} 13. Qd2 {[%emt 0:0:51]} Rfe8 {[%emt 0:0:35]} 14. Re1 {[%emt 0:3:25]} a6 {[%emt 0:2:4]} 15. h3 {[%emt 0:1:40]} Nf6 {[%emt 0:0:2]} 16. e4 {[%emt 0:0:0]} Rad8 {[%emt 0:2:38]} 17. Kh2 {[%emt 0:0:57]} h6 {[%emt 0:0:1]} 18. Rhf1 {[%emt 0:0:44]} Bc8 {[%emt 0:0:16]} 19. g4 {[%emt 0:1:20]} Ne5 {[%emt 0:0:30]
} 20. Qe2 {[%emt 0:0:45]} Nc6 {[%emt 0:0:9]} 21. Qd2 {[%emt 0:0:0]} Ne5 {[%emt 0:0:1]} 22. Qe2 {[%emt 0:1:9]} Nc6 {[%emt 0:0:1]} 23. Rd1 {[%emt 0:0:1]} Kh8 {[%emt 0:0:30]} 24. Qf3 {[%emt 0:0:37]} Kg8 {[%emt 0:0:24]
} 25. b3 {[%emt 0:0:14]} Rd7 {[%emt 0:0:8]} 26. Rfe1 {[%emt 0:0:0]} Rde7 {[%emt 0:0:9]} 27. Nd5 {[%emt 0:0:31]} Nxd5 {[%emt 0:0:3]} 28. cxd5 {[%emt 0:0:1]} Nb8 {[%emt 0:0:4]} 29. e5 {[%emt 0:0:12]} Nd7 {[%emt 0:0:4]
} 30. Qg3 {[%emt 0:0:4]} Nb6 {[%emt 0:0:9]} 31. Be4 {[%emt 0:0:0]} f5 {[%emt 0:0:13]} 32. gxf5 {[%emt 0:0:1]} Qxg3+ {[%emt 0:0:26]} 33. Bxg3 {[%emt 0:0:2]} Nd7 {[%emt 0:0:12]} 34. e6 {[%emt 0:0:35]} Nf6 {[%emt 0:0:1]
} 35. Bh4 {[%emt 0:0:1]} Rf8 {[%emt 0:0:1]} 36. Rc1 {[%emt 0:0:0]} b6 {[%emt 0:0:28]} 37. Rc2 {[%emt 0:0:9]} Bb7 {[%emt 0:0:3]} 38. Bxf6 {[%emt 0:0:1]} gxf6 {[%emt 0:0:15]} 39. Rg1+ {[%emt 0:0:2]} Kh7 {[%emt 0:0:1]
} 40. Rg6 {[%emt 0:0:6]} a5 {[%emt 0:0:13]} 41. a3 {[%emt 0:0:0]} Ba6 {[%emt 0:0:2]} 42. a4 {[%emt 0:0:22]} b5 {[%emt 0:0:10]} 43. Rcg2 {[%emt 0:0:24]} b4 {[%emt 0:0:10]} 44. R2g4 {[%emt 0:0:10]} Be2 {[%emt 0:0:1]
} 45. Rh4 {[%emt 0:0:1]} h5 {[%emt 0:0:2]} 46. Rg2 {[%emt 0:0:0]} Bd1 {[%emt 0:0:1]} 47. Rg1 {[%emt 0:0:5]} Be2 {[%emt 0:0:8]} 48. Re1 {[%emt 0:0:10]} Ba6 {[%emt 0:0:4]} 49. Rxh5+ {[%emt 0:0:7]} Kg8 {[%emt 0:0:0]
} 50. Rh6 {[%emt 0:0:13]} Rg7 {[%emt 0:0:18]} 51. Bf3 {[%emt 0:0:0]} 1-0

[Event "FIDE World Rapid-ch Open 2018"]
[White "Khanin, Semen"]
[Black "Sjugirov, Sanan"]
[Site "St. Petersburg"]
[Round "2.18"]
[Annotator "ChessBase"]
[Result "1-0"]
[Date "2018.12.26"]
[WhiteElo "2514"]
[BlackElo "2663"]
[PlyCount "129"]
[TimeControl "900+10"]

1. e4 {[%emt 0:0:0]} c5 {[%emt 0:0:0]} 2. Nf3 {[%emt 0:0:0]} d6 {[%emt 0:0:0]} 3. d4 {[%emt 0:0:0]} cxd4 {[%emt 0:0:1]} 4. Nxd4 {[%emt 0:0:0]} Nf6 {[%emt 0:0:1]} 5. Nc3 {[%emt 0:0:1]} a6 {[%emt 0:0:4]} 6. f3 {[%emt 0:0:2]
} e5 {[%emt 0:0:25]} 7. Nb3 {[%emt 0:0:2]} Be6 {[%emt 0:0:4]
} 8. Be3 {[%emt 0:0:3]} Be7 {[%emt 0:0:10]} 9. Qd2 {[%emt 0:0:5]} 0-0 {[%emt 0:0:14]
} 10. 0-0-0 {[%emt 0:0:52]} Nbd7 {[%emt 0:0:18]} 11. g4 {[%emt 0:0:13]
} b5 {[%emt 0:0:1]} 12. g5 {[%emt 0:0:0]} b4 {[%emt 0:0:15]} 13. gxf6 {[%emt 0:0:0]} bxc3 {[%emt 0:0:2]} 14. Qxc3 {[%emt 0:0:0]} Nxf6 {[%emt 0:0:2]} 15. Na5 {[%emt 0:0:0]} Rc8 {[%emt 0:0:4]} 16. Nc6 {[%emt 0:0:1]
} Qe8 {[%emt 0:0:8]} 17. Nxe7+ {[%emt 0:0:3]} Qxe7 {[%emt 0:0:0]} 18. Qa5 {[%emt 0:0:4]} Rc6 {[%emt 0:0:2]} 19. Rg1 {[%emt 0:0:6]} Rfc8 {[%emt 0:0:20]} 20. Kb1 {[%emt 0:0:2]} Nh5 {[%emt 0:2:23]} 21. Rg2 {[%emt 0:0:10]
} Qf6 {[%emt 0:1:11]} 22. Rf2 {[%emt 0:0:2]} g6 {[%emt 0:0:0]} 23. b3 {[%emt 0:0:55]} Nf4 {[%emt 0:2:46]} 24. Qa3 {[%emt 0:0:23]} Nh3 {[%emt 0:4:41]} 25. Bxh3 {[%emt 0:0:10]} Bxh3 {[%emt 0:0:1]} 26. c4 {[%emt 0:0:36]
} Re8 {[%emt 0:0:43]} 27. Qa5 {[%emt 0:0:57]} h6 {[%emt 0:0:0]} 28. Qc3 {[%emt 0:2:35]} Qh4 {[%emt 0:0:54]} 29. Rg1 {[%emt 0:2:18]} Kh7 {[%emt 0:0:10]} 30. f4 {[%emt 0:0:12]} f5 {[%emt 0:0:49]} 31. Ka1 {[%emt 0:0:0]} Bg4 {[%emt 0:0:55]} 32. Qd2 {[%emt 0:2:2]} Qf6 {[%emt 0:0:21]} 33. h3 {[%emt 0:2:22]} Bh5 {[%emt 0:0:1]} 34. exf5 {[%emt 0:0:23]} gxf5 {[%emt 0:0:2]
} 35. fxe5 {[%emt 0:0:31]} dxe5 {[%emt 0:0:7]} 36. Qd7+ {[%emt 0:0:35]
} Re7 {[%emt 0:0:15]} 37. Qxf5+ {[%emt 0:0:17]} Qxf5 {[%emt 0:0:0]} 38. Rxf5 {[%emt 0:0:1]} Bg6 {[%emt 0:0:2]} 39. Rf2 {[%emt 0:0:16]} Rd7 {[%emt 0:0:3]} 40. Rd2 {[%emt 0:1:6]} Rxd2 {[%emt 0:0:7]} 41. Bxd2 {[%emt 0:0:1]
} Rd6 {[%emt 0:0:5]} 42. Be3 {[%emt 0:0:7]} Rd3 {[%emt 0:0:0]} 43. Re1 {[%emt 0:0:10]} e4 {[%emt 0:0:41]} 44. Kb2 {[%emt 0:0:3]} Be8 {[%emt 0:0:6]} 45. Kc2 {[%emt 0:0:45]} Bc6 {[%emt 0:0:33]} 46. h4 {[%emt 0:0:0]} Kg6 {[%emt 0:0:4]} 47. Rd1 {[%emt 0:0:24]} Rxe3 {[%emt 0:0:51]} 48. Rd6+ {[%emt 0:0:1]} Kf5 {[%emt 0:0:14]} 49. Rxc6 {[%emt 0:0:2]} Re2+ {[%emt 0:0:0]
} 50. Kc3 {[%emt 0:0:8]} Rxa2 {[%emt 0:0:3]} 51. Rxh6 {[%emt 0:0:29]
} a5 {[%emt 0:0:41]} 52. Rh8 {[%emt 0:0:15]} a4 {[%emt 0:0:23]
} 53. bxa4 {[%emt 0:0:4]} Rxa4 {[%emt 0:0:3]} 54. Kd4 {[%emt 0:0:6]} e3 {[%emt 0:0:18]
} 55. Re8 {[%emt 0:0:6]} Ra1 {[%emt 0:0:10]} 56. Rxe3 {[%emt 0:0:4]
} Rh1 {[%emt 0:0:2]} 57. Kd5 {[%emt 0:0:3]} Rxh4 {[%emt 0:0:0]} 58. c5 {[%emt 0:0:2]} Rh1 {[%emt 0:0:9]} 59. c6 {[%emt 0:0:8]} Rd1+ {[%emt 0:0:18]} 60. Kc5 {[%emt 0:0:1]} Rc1+ {[%emt 0:0:1]} 61. Kd6 {[%emt 0:0:1]
} Rd1+ {[%emt 0:0:2]} 62. Kc7 {[%emt 0:0:3]} Kf6 {[%emt 0:0:0]} 63. Kc8 {[%emt 0:0:5]} Rb1 {[%emt 0:0:7]} 64. c7 {[%emt 0:0:2]} Kf7 {[%emt 0:0:12]} 65. Re4 {[%emt 0:0:13]} 1-0